Cogmind - Beta 13 @@@ ROGUE MODE // 2024.04.03 @ 18:47:07 Player: KingStarKing Result: Destroyed by D-53 Grenadier with Mini Grenade Launcher Performance ------------- Evolutions (1) 500 Regions Visited (4) 800 Robots Destroyed (62) 310 Value Destroyed (1215) 1215 Prototype IDs (0) 0 Alien Tech Used (0) 0 Bonus (22) 22 TOTAL SCORE: 2847 Bonus ------- High Alert Combat Kills 22 Cogmind --------- Core Integrity 0/400 Matter 273/300 Energy 49/125 System Corruption 0% Temperature Cool (47) Movement Core (750) Ox14 Location -9/Mines Parts ------- > --- POWER (1) -------- Light Ion Engine > --- PROPULSION (4) --- (None) > --- UTILITY (2) ------ High-capacity Storage Unit Structural Scanner > --- WEAPON (2) ------- (None) > --- INVENTORY (20) --- Light Ion Engine Heat Sink Heat Sink Large Storage Unit Large Storage Unit High-capacity Storage Unit Huge Storage Unit Hardened Light Armor Plating Hardened Light Armor Plating Hardened Light Armor Plating Beam Rifle Heavy Assault Rifle Improved Light Cannon Improved Light Cannon Peak State ------------ > --- POWER ------------ Light Nuclear Core > --- PROPULSION ------- Aluminum Leg Aluminum Leg Aluminum Leg Aluminum Leg > --- UTILITY ---------- High-capacity Storage Unit Structural Scanner > --- WEAPON ----------- Improved Light Cannon Improved Light Cannon > --- INVENTORY -------- Ion Engine Light Ion Engine Light Ion Engine Aluminum Leg Heat Sink Heat Sink Large Storage Unit High-capacity Storage Unit Huge Storage Unit Hardened Light Armor Plating Hardened Light Armor Plating Hardened Light Armor Plating Beam Rifle Beam Rifle Beam Rifle Improved Light Cannon Grenade Launcher Rocket Launcher [Rating: 15] Favorites ----------- Power Ion Engine Engine Ion Engine Power Core Light Nuclear Core Propulsion Aluminum Leg Treads Light Treads Leg Aluminum Leg Utility Structural Scanner Device Structural Scanner Storage High-capacity Storage Unit Weapon Improved Light Cannon Energy Gun EM Pulse Gun Ballistic Gun Light Assault Rifle Ballistic Cannon Improved Light Cannon Launcher Rocket Launcher Build | -11 -10 -10 -9 -9 ------- Run | Yrd Mat Min Mat Min Slots Evolved 2 | . . . 2 . Power . | . . . . . Propulsion 2 | . . . 2 . Utility . | . . . . . Weapon . | . . . . . Parts Attached 48 | 7 15 6 16 4 Power 7 | 1 2 2 1 1 Engine 6 | 1 2 1 1 1 Core 1 | . . 1 . . Reactor . | . . . . . Propulsion 17 | 2 3 3 9 . Treads 2 | 2 . . . . Leg 15 | . 3 3 9 . Wheel . | . . . . . Hover . | . . . . . Flight . | . . . . . Utility 7 | 2 5 . . . Device 2 | 1 1 . . . Storage 5 | 1 4 . . . Processor . | . . . . . Hackware . | . . . . . Protection . | . . . . . Artifact . | . . . . . Weapon 17 | 2 5 1 6 3 Energy Gun 6 | 2 1 . 1 2 Energy Cannon . | . . . . . Ballistic Gun 4 | . 3 . 1 . Ballistic Cannon 3 | . 1 1 1 . Launcher 4 | . . . 3 1 Special Weapon . | . . . . . Impact Weapon . | . . . . . Slashing Weapon . | . . . . . Piercing Weapon . | . . . . . Special Melee Weapon . | . . . . . Unidentified Prototypes . | . . . . . Parts Lost 20 | . 2 1 9 8 Power 3 | . . 1 1 1 Propulsion 11 | . 1 . 8 2 Utility 1 | . 1 . . . Weapon 5 | . . . . 5 Highest Loss Streak 8 | . 2 1 3 8 To Critical Strikes 1 | . . . 1 . Average Slot Usage (%) 95 | . 99 99 84 44 Engine 8 | . 14 5 5 . Core 4 | . . 8 5 . Treads 1 | . 4 . . . Leg 26 | . 23 28 29 11 Device 13 | . 13 14 11 11 Storage 13 | . 14 14 11 11 Energy Gun 2 | . 6 . . 11 Ballistic Gun 8 | . 18 . 4 . Ballistic Cannon 12 | . 3 27 10 . Launcher 2 | . . . 7 . Naked Turns . | . . . . . Heaviest Build 88 | 13 88 54 54 . Greatest Support 43 | 40 40 20 43 . Greatest Overweight (x) 4 | 1 4 2 4 . Average Overweight (x) 1 | . 1 2 1 . Largest Inventory Capacity 25 | 8 25 20 20 20 Average Capacity 19 | 7 18 20 20 20 Most Carried 20 | 8 20 20 20 18 Average Carried 17 | 3 15 19 18 15 Final Capacity 20 | 8 20 20 20 20 Final Carried 20 | 4 20 20 18 14 Class Distribution -------------------- 83% | Mutant 16% | Scavenger-Mutant Dominant Class ---------------- Mutant | -10/Materials Mutant | -10/Mines Mutant | -9/Materials Mutant | -9/Mines Resources | -11 -10 -10 -9 -9 ----------- Run | Yrd Mat Min Mat Min Matter Collected 1169 | 270 192 135 572 . Remotely . | . . . . . Salvage Created 1688 | 121 529 168 853 17 Parts 96 | 4 23 10 56 3 Haulers Intercepted . | . . . . . Recyclers Shooed 3 | . 1 . 2 . Parts Field Recycled . | . . . . . Retrieved Matter . | . . . . . Parts Self-Destructed . | . . . . . Prevented . | . . . . . Kills | -11 -10 -10 -9 -9 ------- Run | Yrd Mat Min Mat Min Combat Hostiles Destroyed 41 | . 14 5 20 2 Guns 23 | . 13 1 9 . Cannons 8 | . . 4 4 . AOE 9 | . . . 7 2 Classes Destroyed 10 | 2 3 1 4 . Worker 4 | . . 1 3 . Builder 2 | . . . 2 . Tunneler 2 | 1 1 . . . Recycler 8 | 1 . 1 6 . Operator 1 | . 1 . . . Watcher 4 | . . . 4 . Swarmer 20 | . 5 3 10 2 Grunt 17 | . 9 2 6 . Duelist 1 | . . . 1 . Sentry 3 | . . . 3 . Best Kill Streak 10 | 2 3 3 10 2 Combat Bots Only 4 | . 3 3 4 2 Max Kills in Single Turn 5 | 1 1 1 5 2 Gunslinging . | . . . . . Exploded 2 | . . . 2 2 Melee . | . . . . . Uniques/NPCs Destroyed . | . . . . . Combat | -11 -10 -10 -9 -9 -------- Run | Yrd Mat Min Mat Min Hostile Shots Fired 238 | . 65 21 140 12 Missed 62 | . 10 4 46 2 Damage Taken 2630 | . 566 248 1304 512 Core 483 | . 69 12 229 173 Absorbed by Shields . | . . . . . Core Remaining (%) 83 | 100 . 67 . . Volleys Fired 134 | 6 55 11 58 4 Largest 2 | 2 2 2 2 2 Hottest 112 | 80 80 95 79 112 Shots Fired 243 | 12 102 22 100 7 Gun 168 | 12 102 6 43 5 Cannon 54 | . . 16 38 . Launcher 21 | . . . 19 2 Special . | . . . . . Kinetic 156 | . 68 16 70 2 Thermal 20 | . . 6 11 3 Explosive 21 | . . . 19 2 Electromagnetic 46 | 12 34 . . . Robot Hit Streak 15 | 3 14 15 6 3 Robot Miss Streak 3 | 3 3 1 3 2 Penetration Max . | . . . . . Secondary Targets . | . . . . . Shots Hit Robots 144 | 6 73 14 47 4 Core Hits 84 | 3 28 10 40 3 Critical Kills . | . . . . . Critical Parts Destroyed . | . . . . . Critical Strikes 4 | . . 1 1 2 Burn 4 | . . 1 1 2 Melee Attacks . | . . . . . Impact . | . . . . . Slashing . | . . . . . Piercing . | . . . . . Sneak Attacks . | . . . . . Combat Hostiles . | . . . . . Follow-up Attacks . | . . . . . Damage Inflicted 3435 | 107 801 267 2028 232 Guns 1320 | 104 742 71 359 44 Cannons 552 | . . 194 358 . Explosions 1527 | . 40 . 1299 188 Melee . | . . . . . Ramming 36 | 3 19 2 12 . Kinetic 1233 | . 380 194 659 . Thermal 213 | . 40 71 58 44 Explosive 1487 | . . . 1299 188 Electromagnetic 466 | 104 362 . . . Impact . | . . . . . Slashing . | . . . . . Piercing . | . . . . . Highest Corruption . | . . . . . Average Corruption . | . . . . . Corruption Purged . | . . . . . Corruption Blocked . | . . . . . Overload Shots . | . . . . . Overflow Damage 219 | . 28 . 140 51 Projectiles . | . . . . . Explosions 219 | . 28 . 140 51 Melee . | . . . . . Knockbacks 4 | . . 2 2 . Impact . | . . . . . Kinetic 4 | . . 2 2 . Secondary . | . . . . . Self-Inflicted Damage 266 | . . . 266 . Shots 5 | . . . 5 . Rammed 2 | 1 1 . . . Targets Rammed 12 | 1 5 2 4 . Kicked 10 | . 4 2 4 . Crushed . | . . . . . Highest Temperature 327 | 108 327 255 102 47 Average Temperature 69 | 55 112 94 32 32 Received Heat Transfer 597 | . 249 111 237 . Effects 3 | . 3 . . . Interference 3 | . 3 . . . Siege Activations . | . . . . . Robots Corrupted 1 | . 1 . . . Combat Hostiles 1 | . 1 . . . Parts Fried 4 | . 4 . . . Impact Corruptions . | . . . . . Robots Melted . | . . . . . Combat Hostiles . | . . . . . Parts Melted . | . . . . . Heat Transferred 790 | . 50 259 222 259 Parts Sabotaged . | . . . . . Parts Stolen . | . . . . . Parts Stripped . | . . . . . Power Chain Reactions 1 | . 1 . . . Alert | -11 -10 -10 -9 -9 ------- Run | Yrd Mat Min Mat Min Peak Influence 587 | 10 249 90 587 269 Initial 195 | . 6 . 1 195 Average 84 | 3 40 16 211 230 Maximum Alert Level 2 | . 1 . 2 1 Low Security (%) 86 | 100 96 100 59 . Level 1 6 | . 3 . 17 100 Level 2 6 | . . . 22 . Level 3 . | . . . . . Level 4 . | . . . . . Level 5 . | . . . . . High Security . | . . . . . Max Security . | . . . . . Squads Dispatched 5 | . 4 . 1 . Investigation 3 | . 3 . . . Extermination . | . . . . . Reinforcement 2 | . 1 . 1 . Assault . | . . . . . Garrison . | . . . . . Intercept . | . . . . . Searches Triggered . | . . . . . Construction Impeded . | . . . . . Haulers Reinforced . | . . . . . Active Scanning Responses . | . . . . . Cargo Convoy Interrupts . | . . . . . Stealth | -11 -10 -10 -9 -9 --------- Run | Yrd Mat Min Mat Min Distress Signals 4 | . 1 . 3 . Communications Jammed . | . . . . . Distress Signals . | . . . . . Times Spotted 76 | . 31 7 35 3 Peak Tracking Total 5 | . 4 3 5 3 Tactical Retreats 2 | . . . 2 . Traps | -11 -10 -10 -9 -9 ------- Run | Yrd Mat Min Mat Min Traps Triggered 3 | . 3 . . . Indirectly . | . . . . . Trap Hack Attempts . | . . . . . Triggered . | . . . . . Disarmed . | . . . . . Reprogrammed . | . . . . . Reused . | . . . . . Traps Extracted . | . . . . . Installed . | . . . . . Triggered . | . . . . . Machines | -11 -10 -10 -9 -9 ---------- Run | Yrd Mat Min Mat Min Machines Disabled 6 | . 1 1 4 . Max in Single Turn 2 | . 1 1 2 . Machines Repaired . | . . . . . Machines Dismantled . | . . . . . Machines Sabotaged . | . . . . . Overloaded Fab Kills . | . . . . . Hacking | -11 -10 -10 -9 -9 --------- Run | Yrd Mat Min Mat Min Machines Accessed 4 | . 2 1 1 . Terminals 3 | . 2 . 1 . Fabricators . | . . . . . Repair Stations . | . . . . . Recycling Units . | . . . . . Scanalyzers . | . . . . . Garrison Access . | . . . . . Total Hacks 6 | . 3 1 2 . Successful 4 | . 1 1 2 . Failed 2 | . 2 . . . Catastrophic . | . . . . . Database Lockouts . | . . . . . Manual . | . . . . . Terminals 5 | . 3 . 2 . Fabricators . | . . . . . Repair Stations . | . . . . . Recycling Units . | . . . . . Scanalyzers . | . . . . . Garrison Access . | . . . . . Terminal Hacks 4 | . 1 1 2 . Record 1 | . . . 1 . Open Door 1 | . . 1 . . Branch Access Points 1 | . 1 . . . Maintenance Status 1 | . . . 1 . Fabricator Hacks . | . . . . . Repair Station Hacks . | . . . . . Recycling Unit Hacks . | . . . . . Scanalyzer . | . . . . . Garrison Access Hacks . | . . . . . Unauthorized Hacks . | . . . . . Terminals . | . . . . . Fabricators . | . . . . . Repair Stations . | . . . . . Recycling Units . | . . . . . Scanalyzers . | . . . . . Garrison Access . | . . . . . Data Cores Recovered . | . . . . . Used . | . . . . . Hacking Detections . | . . . . . Full Trace Events . | . . . . . Feedback Events . | . . . . . Feedback Blocked . | . . . . . Robot Schematics Acquired . | . . . . . Robots Built . | . . . . . Authchips . | . . . . . Time . | . . . . . Total Robot Build Rating . | . . . . . Part Schematics Acquired . | . . . . . Parts Built . | . . . . . Authchips . | . . . . . Time . | . . . . . Total Part Build Rating . | . . . . . Parts Repaired . | . . . . . Time . | . . . . . Parts Recycled . | . . . . . Recycled Matter . | . . . . . Retrieved Matter . | . . . . . Retrieved Components . | . . . . . Parts Scanalyzed . | . . . . . Part Schematics Acquired . | . . . . . Parts Damaged . | . . . . . Bothacking | -11 -10 -10 -9 -9 ------------ Run | Yrd Mat Min Mat Min Used RIF Installer . | . . . . . Robots Hacked . | . . . . . Non-combat . | . . . . . Combat . | . . . . . Robot Hacks Applied . | . . . . . Relay Couplers Released . | . . . . . Fabnet Peak Effective % . | . . . . . Robots Rewired . | . . . . . Allies Hacked . | . . . . . Hacks Repelled . | . . . . . Allies | -11 -10 -10 -9 -9 -------- Run | Yrd Mat Min Mat Min Total Allies . | . . . . . Largest Group . | . . . . . Highest-Rated Group . | . . . . . Highest-Rated Ally . | . . . . . Total Orders . | . . . . . Ally Attacks . | . . . . . Total Damage . | . . . . . Kills . | . . . . . Allies Corrupted . | . . . . . Allies Melted . | . . . . . Intel | -11 -10 -10 -9 -9 ------- Run | Yrd Mat Min Mat Min Robot Analysis Total . | . . . . . Derelict Logs Recovered 1 | . . 1 . . Drone Launches . | . . . . . Drone Recoveries . | . . . . . Exploration | -11 -10 -10 -9 -9 ------------- Run | Yrd Mat Min Mat Min Turns Passed 6145 | 101 2423 1762 1845 14 Spaces Moved 2307 | 50 914 646 697 . Core 22 | 22 . . . . Treads 158 | 28 130 . . . Legs 2127 | . 784 646 697 . Wheels . | . . . . . Hover . | . . . . . Flight . | . . . . . Fastest Speed 50 | 50 160 260 190 . Average Speed 236 | 128 232 260 227 . Slowest Speed 400 | 160 400 260 400 . Overloaded Moves . | . . . . . Propulsion Burnouts . | . . . . . Robots Hopped . | . . . . . Cave-ins Triggered . | . . . . . Exploration Rate (%) 55 | 4 98 99 71 5 Regions Visited 4 Branch Regions 2 Pre-discovered Areas . | . . . . . Known Exits Taken 1 | . 1 . . . Unknown Exits Taken 3 | 1 . 1 1 . Scrap Searched 3 | . . 3 . . Spaces Dug 46 | . . . 46 . Terrain Destroyed 184 | . 3 1 166 14 Melee . | . . . . . Projectile 1 | . . 1 . . AOE 183 | . 3 . 166 14 Terrain Rammed . | . . . . . Walls Destroyed . | . . . . . Machines Disabled . | . . . . . Actions | -11 -10 -10 -9 -9 --------- Run | Yrd Mat Min Mat Min Total 2761 | 74 1127 705 847 8 Wait 161 | . 71 26 64 . Move 2304 | 50 913 645 696 . Hop . | . . . . . Pick Up 70 | 11 43 8 8 . Fast Attach . | . . . . . Attach 26 | 7 4 1 10 4 Detach . | . . . . . Swap 22 | . 11 5 6 . Drop 33 | . 25 7 1 . Fire 134 | 6 55 11 58 4 Melee . | . . . . . Ram . | . . . . . Kick 10 | . 4 2 4 . Crush 1 | . 1 . . . Escape Stasis . | . . . . . Rewire . | . . . . . Trap . | . . . . . Miscellaneous . | . . . . . Route ------- -11/Scrapyard -10/Materials (discovered 5 exits: *Mat x3 / *Min x2) -10/Mines (discovered 2 exits: *Mat x2) -9/Materials (discovered 4 exits: [*Mat x2] / [*Min] / [*Sto]) -9/Mines (discovered 2 exits: [*Mat] / [*Zio]) History --------- Turn | Location | Event 7 | -11/Scrapyard | Discovered new exit (range 15) 102 | -11/Scrapyard | Entered Materials 309 | -10/Materials | Build established: Mutant 656 | -10/Materials | Discovered new exit (range 5) 1077 | -10/Materials | Discovered new exit (range 5) 1205 | -10/Materials | Identified exit to Mines 1331 | -10/Materials | Discovered new exit (range 12) 1841 | -10/Materials | Discovered new exit (range 16) 2525 | -10/Materials | Entered Mines 2780 | -10/Mines | Discovered new exit (range 14) 2793 | -10/Mines | Learned Materials trap positions 3115 | -10/Mines | Discovered new exit (range 5) 3159 | -10/Mines | Received a Rocket Launcher from a helpful Derelict 3774 | -10/Mines | Met a Derelict who couldn't figure out how to use a Trap Extractor 4287 | -10/Mines | Entered Materials 4287 | -9/Materials | Evolved 2 slots: Propulsion x2 4288 | -9/Materials | Loaded intel: 16 trap records 4584 | -9/Materials | Build established: Scavenger-Mutant 5188 | -9/Materials | Build established: Mutant 5312 | -9/Materials | Discovered new exit (range 15) 5373 | -9/Materials | Discovered new exit (range 16) 5509 | -9/Materials | Lost 3 parts (3n) 5711 | -9/Materials | Core integrity fell below 50% 5900 | -9/Materials | Discovered new exit (range 16) 6071 | -9/Materials | Discovered new exit (range 7) 6132 | -9/Materials | Entered Mines 6133 | -9/Mines | Assembled infested the area 6136 | -9/Mines | Discovered new exit (range 10) 6137 | -9/Mines | A Derelict revealed a hidden shortcut to a safe place 6138 | -9/Mines | Assisted by a Guerilla fighting off Assembled 6142 | -9/Mines | Core integrity fell below 20% 6146 | -9/Mines | Destroyed by D-53 Grenadier with Mini Grenade Launcher Last Messages --------------- EXIT=FOUND A derelict emerges from the shadows: "It's not safe here! Let me show you to a place where you won't have to worry about staying in one piece!" A derelict emerges from the shadows: "You need to get out of here! I've been tracking a group of Assembled to figure out where they're coming from, and they're closing on this area, come on!" FT-G63(h) destroyed. Aluminum Leg destroyed. Hvy. Assault Rifle destroyed. Grenade Launcher destroyed. KW-F39(z) disappears into a concealed tunnel. D-53 Grenadier suffers critical hit (Burn). Beam Rifle destroyed. Imp. Aluminum Leg destroyed. U-05 Engineer lays Concrete. K-01 Serf collects debris. U-05 Engineer lays Concrete. D-53 Grenadier suffers critical hit (Burn). U-05 Engineer lays Concrete. Beam Rifle destroyed. Map ----- +----------------------------------------------------+ | ?????????????????????????????????????????????????? | | ?????????????????????????????????????????????????? | | ?????????????????????????????????????????????????? | | ?????????????????????????????????????????????????? | | ?????????????????????????????????????????????????? | | ?????????????????????????????????????????????????? | | ?????????????????????????????????????????????????? | | ?????????????????????????????????????????????????? | | ?????????????????????????????????????????????????? | | ?????????????????????????????????????????????????? | | ?????????????????????????????????????????????????? | | ?????????????????????????????????????????????????? | | ?????????????????????????????????????????????????? | | ?????????????????????????????????????????????????? | | ?????????????????????????????????????????????????? | | ?????????????????????????????????????????????????? | | ?????????????????? ????????????????????????????? | | ??????????????????###????????????????????????????? | | ??????????????????## ######????????????????????? | | ??????????????????## #########??????????????????? | | ??????????????????## # ## #####?????????????????? | | ????????????????##### ###?????????????????? | | ???????????????###### ##?????????????????? | | ???????????????### ##?????????????????? | | ???????????????## ##?????????????????? | | ??????????????### @ ##?????????????????? | | ??????????????## % ##?????????????????? | | ??????????????### d ##?????????????????? | | ????????????#### d ###?????????????????? | | ???????????### % # ####?????????????????? | | ???????????#; kku #### #######??????????????????? | | ???????????# >